fUST/lending_fUST_20240119
["ID","MTS","AMOUNT","RATE_DAILY","PERIOD"]
[312123060,1705650641632,-503.17847827,0.00032876,2]
[312123062,1705650641641,-506.47953687,0.00032876,2]
[312123064,1705650641650,-500.0,0.00032876,2]
[312123066,1705650641658,-500.0,0.00032876,2]
[312123068,1705650641667,-500.0,0.00032876,2]
[312123070,1705650641677,-500.0,0.00032876,2]
[312123072,1705650641686,-500.0,0.00032876,2]
[312123074,1705650641695,-500.0,0.00032876,2]
[312123076,1705650641704,-500.0,0.00032876,2]
[312123078,1705650641713,-500.0,0.00032876,2]
[312123079,1705650641722,-500.0,0.00032876,2]
[312123081,1705650641731,-500.77772675,0.00032876,2]
[312123084,1705650641741,-500.0,0.00032876,2]
[312123086,1705650641750,-500.0,0.00032876,2]
[312123088,1705650641759,-500.0,0.00032876,2]
[312123090,1705650641768,-500.0,0.00032876,2]
[312123091,1705650641777,-500.0,0.00032876,2]
[312123094,1705650641787,-500.0,0.00032876,2]
[312123096,1705650641796,-350.66557891,0.00032876,2]
[312123098,1705650641805,-500.0,0.00032876,2]
[312123100,1705650641814,-500.73985236,0.00032876,2]
[312123101,1705650641823,-200.0,0.00032876,2]
[312123104,1705650641832,-500.0,0.00032876,2]
[312123106,1705650641842,-500.0,0.00032876,2]
[312123107,1705650641851,-500.0,0.00032876,2]
[312123109,1705650641859,-500.0,0.00032876,2]
[312123111,1705650641871,-500.0,0.00032876,2]
[312123113,1705650641880,-500.0,0.00032876,2]
[312123115,1705650641890,-446.21201326,0.00032876,2]
[312123117,1705650641899,-500.0,0.00032876,2]
[312123119,1705650641908,-150.0,0.00032876,2]
[312123121,1705650641917,-174.6243154,0.00032876,2]
[312123123,1705650641926,-500.0,0.00032876,2]
[312123126,1705650641936,-500.0,0.00032876,2]
[312123128,1705650641945,-500.0,0.00032876,2]
[312123130,1705650641954,-500.0,0.00032876,2]
[312123132,1705650641963,-647.47145029,0.00032876,2]
[312123134,1705650641972,-500.0,0.00032876,2]
[312123135,1705650641981,-500.0,0.00032876,2]
[312123137,1705650641990,-194.81288984,0.00032876,2]
[312123140,1705650641999,-542.29561648,0.00032876,2]
[312123142,1705650642008,-500.0,0.00032876,2]
[312123143,1705650642017,-468.5128347,0.00032876,2]
[312123145,1705650642027,-500.0,0.00032876,2]
[312123148,1705650642036,-500.0,0.00032876,2]
[312123150,1705650642045,-500.0,0.00032876,2]
[312123152,1705650642054,-250.0,0.00032876,7]
[312123154,1705650642063,-500.0,0.00032876,2]
[312123156,1705650642072,-500.0,0.00032876,2]
[312123158,1705650642081,-500.0,0.00032876,2]
[312123160,1705650642090,-500.0,0.00032876,2]
[312123162,1705650642100,-500.0,0.00032876,2]
[312123164,1705650642109,-500.0,0.00032876,2]
[312123165,1705650642120,-500.0,0.00032876,2]
[312123167,1705650642130,-516.44521209,0.00032876,2]
[312123169,1705650642138,-500.0,0.00032876,2]
[312123171,1705650642146,-500.0,0.00032876,2]
[312123173,1705650642155,-500.0,0.00032876,2]
[312123175,1705650642164,-500.0,0.00032876,2]
[312123177,1705650642174,-501.13676936,0.00032876,2]
[312123179,1705650642185,-500.0,0.00032876,2]
[312123181,1705650642194,-566.20159311,0.00032876,2]
[312123183,1705650642203,-500.0,0.00032876,7]
[312123185,1705650642212,-539.01197473,0.00032876,2]
[312123187,1705650642221,-500.0,0.00032876,2]
[312123189,1705650642230,-635.85140251,0.00032876,2]
[312123191,1705650642239,-500.0,0.00032876,2]
[312123193,1705650642248,-500.0,0.00032876,2]
[312123194,1705650642257,-500.0,0.00032876,2]
[312123196,1705650642268,-502.0314944,0.00032876,2]
[312123198,1705650642277,-500.0,0.00032876,2]
[312123200,1705650642286,-500.0,0.00032876,2]
[312123202,1705650642295,-500.0,0.00032876,2]
[312123204,1705650642304,-500.0,0.00032876,2]
[312123206,1705650642314,-500.88805801,0.00032876,2]
[312123209,1705650642323,-431.15991902,0.00032876,2]
[312123211,1705650642332,-500.0,0.00032876,2]
[312123213,1705650642342,-500.0,0.00032876,2]
[312123215,1705650642351,-500.0,0.00032876,2]
[312123217,1705650642361,-500.0,0.00032876,2]
[312123218,1705650642373,-180.35298361,0.00032876,2]
[312123221,1705650642383,-500.0,0.00032876,2]
[312123222,1705650642392,-500.0,0.00032876,2]
[312123224,1705650642401,-562.89914058,0.00032876,2]
[312123226,1705650642410,-502.28877246,0.00032876,2]
[312123228,1705650642418,-500.0,0.00032876,2]
[312123230,1705650642427,-296.99584848,0.00032876,2]
[312123232,1705650642436,-500.0,0.00032876,2]
[312123234,1705650642445,-500.78157779,0.00032876,2]
[312123236,1705650642454,-500.0,0.00032876,2]
[312123238,1705650642463,-500.0,0.00032876,2]
[312123240,1705650642473,-462.82894798,0.00032876,2]
[312123242,1705650642483,-500.0,0.00032876,2]
[312123244,1705650642492,-500.0,0.00032876,2]
[312123246,1705650642501,-500.0,0.00032876,2]
[312123248,1705650642510,-500.13620846,0.00032876,2]
[312123251,1705650642520,-500.0,0.00032876,2]
[312123252,1705650642529,-500.0,0.00032876,2]
[312123254,1705650642538,-501.21061276,0.00032876,2]
[312123256,1705650642547,-231.31571371,0.00032876,2]
[312123258,1705650642556,-504.79067501,0.00032876,2]
[312123260,1705650642565,-1000.0,0.00032876,2]
[312123262,1705650642574,-500.0,0.00032876,2]
[312123265,1705650642583,-500.0,0.00032876,2]
[312123267,1705650642592,-500.0,0.00032876,2]
[312123269,1705650642602,-574.52467871,0.00032876,2]
[312123271,1705650642611,-851.62,0.00032876,2]
[312123273,1705650642626,-510.8176252,0.00032876,2]
[312123275,1705650642635,-500.0,0.00032876,2]
[312123277,1705650642645,-500.0,0.00032876,2]
[312123278,1705650642654,-500.0,0.00032876,2]
[312123280,1705650642664,-500.0,0.00032876,2]
[312123282,1705650642673,-310.58802981,0.00032876,2]
[312123284,1705650642682,-500.0,0.00032876,2]
[312123286,1705650642692,-500.0,0.00032876,2]
[312123288,1705650642700,-500.0,0.00032876,2]
[312123290,1705650642710,-500.0,0.00032876,2]
[312123293,1705650642719,-168.23707724,0.00032876,2]
[312123294,1705650642729,-500.0,0.00032876,2]
[312123296,1705650642738,-500.0,0.00032876,2]
[312123298,1705650642747,-500.0,0.00032876,2]
[312123300,1705650642757,-500.0,0.00032876,2]
[312123302,1705650642766,-500.0,0.00032876,2]
[312123304,1705650642774,-500.0,0.00032876,2]
[312123306,1705650642784,-500.0,0.00032876,2]
[312123316,1705650642857,-500.0,0.00032876,2]
[312123318,1705650642868,-500.0,0.00032876,2]
[312123320,1705650642877,-500.0,0.00032876,2]
[312123322,1705650642887,-500.0,0.00032876,2]
[312123324,1705650642896,-500.0,0.00032876,2]
[312123326,1705650642905,-500.0,0.00032876,2]
[312123328,1705650642914,-500.0,0.00032876,2]
[312123330,1705650642923,-500.0,0.00032876,2]
[312123332,1705650642932,-500.0,0.00032876,2]
[312123334,1705650642941,-500.0,0.00032876,2]
[312123336,1705650642951,-500.0,0.00032876,2]
[312123337,1705650642960,-500.0,0.00032876,2]
[312123340,1705650642970,-500.0,0.00032876,2]
[312123342,1705650642979,-500.0,0.00032876,2]
[312123344,1705650642988,-500.0,0.00032876,2]
[312123345,1705650642998,-501.41665242,0.00032876,2]
[312123348,1705650643007,-500.0,0.00032876,2]
[312123349,1705650643018,-500.0,0.00032876,2]
[312123351,1705650643029,-500.0,0.00032876,2]
[312123353,1705650643039,-500.0,0.00032876,2]
[312123355,1705650643049,-500.0,0.00032876,2]
[312123358,1705650643058,-500.0,0.00032876,2]
[312123359,1705650643069,-535.12902412,0.00032876,2]
[312123361,1705650643078,-500.0,0.00032876,2]
[312123363,1705650643087,-330.77387985,0.00032876,2]
[312123365,1705650643097,-508.39221343,0.00032876,2]
[312123367,1705650643106,-443.30040039,0.00032876,2]
[312123369,1705650643117,-500.0,0.00032876,2]
[312123371,1705650643126,-500.0,0.00032876,2]
[312123373,1705650643136,-1184.91,0.00032876,2]
[312123375,1705650643144,-500.0,0.00032876,2]
[312123377,1705650643153,-500.0,0.00032876,2]
[312123379,1705650643162,-500.0,0.00032876,2]
[312123381,1705650643171,-500.82985552,0.00032876,2]
[312123383,1705650643181,-500.0,0.00032876,2]
[312123385,1705650643190,-220.59931933,0.00032876,2]
[312123387,1705650643199,-500.0,0.00032876,2]
[312123390,1705650643214,-500.0,0.00032876,2]
[312123391,1705650643223,-500.0,0.00032876,2]
[312123394,1705650643234,-500.0,0.00032876,2]
[312123395,1705650643243,-505.83850922,0.00032876,2]
[312123397,1705650643252,-500.0,0.00032876,2]
[312123399,1705650643262,-462.60822105,0.00032876,2]
[312123401,1705650643271,-1000.0,0.00032876,2]
[312123403,1705650643281,-500.0,0.00032876,2]
[312123405,1705650643290,-500.0,0.00032876,2]
[312123407,1705650643299,-500.0,0.00032876,2]
[312123409,1705650643308,-502.9550057,0.00032876,2]
[312123411,1705650643318,-500.0,0.00032876,2]
[312123413,1705650643326,-334.15306829,0.00032876,2]
[312123415,1705650643335,-500.0,0.00032876,2]
[312123417,1705650643345,-500.0,0.00032876,2]
[312123419,1705650643354,-500.0,0.00032876,2]
[312123422,1705650643364,-502.14852127,0.00032876,2]
[312123423,1705650643376,-500.0,0.00032876,2]
[312123425,1705650643385,-500.0,0.00032876,2]
[312123427,1705650643394,-500.0,0.00032876,2]
[312123429,1705650643403,-500.0,0.00032876,2]
[312123430,1705650643411,-500.0,0.00032876,2]
[312123432,1705650643420,-500.0,0.00032876,2]
[312123434,1705650643429,-500.0,0.00032876,2]
[312123436,1705650643438,-460.93815917,0.00032876,2]
[312123438,1705650643447,-500.36215985,0.00032876,2]
[312123440,1705650643457,-500.0,0.00032876,2]
[312123443,1705650643467,-500.0,0.00032876,2]
[312123445,1705650643476,-500.0,0.00032876,2]
[312123446,1705650643486,-428.00989318,0.00032876,2]
[312123449,1705650643495,-500.0,0.00032876,2]
[312123451,1705650643505,-500.0,0.00032876,2]
[312123452,1705650643514,-500.0,0.00032876,2]
[312123454,1705650643523,-501.4348099,0.00032876,2]
[312123456,1705650643532,-500.0,0.00032876,2]
[312123458,1705650643541,-500.0,0.00032876,2]
[312123460,1705650643550,-500.71712244,0.00032876,2]
[312123462,1705650643559,-286.11047609,0.00032876,2]
[312123464,1705650643568,-256.88557354,0.00032876,2]
[312123466,1705650643577,-525.11121153,0.00032876,2]
[312123468,1705650643586,-500.0,0.00032876,2]
[312123470,1705650643596,-509.91150569,0.00032876,2]
[312123473,1705650643605,-500.0,0.00032876,2]
[312123475,1705650643614,-556.26137122,0.00032876,2]
[312123477,1705650643626,-500.0,0.00032876,2]
[312123478,1705650643635,-500.93177506,0.00032876,2]
[312123481,1705650643645,-500.51110495,0.00032876,2]
[312123483,1705650643654,-501.2440382,0.00032876,2]
[312123485,1705650643665,-500.0,0.00032876,2]
[312123486,1705650643676,-500.0,0.00032876,2]
[312123489,1705650643687,-500.0,0.00032876,2]
[312123491,1705650643697,-500.0,0.00032876,2]
[312123493,1705650643706,-511.0322068,0.00032876,2]
[312123495,1705650643715,-500.0,0.00032876,2]
[312123496,1705650643724,-500.0,0.00032876,2]
[312123498,1705650643734,-155.75366858,0.00032876,2]
[312123500,1705650643743,-500.0,0.00032876,2]
[312123502,1705650643752,-500.34598322,0.00032876,2]
[312123504,1705650643761,-500.0,0.00032876,2]
[312123507,1705650643770,-500.0,0.00032876,2]
[312123508,1705650643781,-500.0,0.00032876,2]
[312123510,1705650643792,-500.0,0.00032876,2]
[312123512,1705650643802,-500.0,0.00032876,2]
[312123515,1705650643811,-330.86630192,0.00032876,2]
[312123517,1705650643821,-500.0,0.00032876,2]
[312123518,1705650643831,-500.0,0.00032876,2]
[312123520,1705650643840,-500.0,0.00032876,2]
[312123522,1705650643850,-375.59993019,0.00032876,2]
[312123525,1705650643859,-500.0,0.00032876,2]
[312123527,1705650643874,-500.0,0.00032876,2]
[312123529,1705650643883,-500.0,0.00032876,2]
[312123531,1705650643892,-182.80947998,0.00032876,2]
[312123533,1705650643902,-500.0,0.00032876,2]
[312123535,1705650643912,-500.0,0.00032876,2]
[312123537,1705650643922,-505.91050985,0.00032876,2]
[312123539,1705650643931,-528.38089854,0.00032876,2]
[312123541,1705650643940,-500.0,0.00032876,2]
[312123543,1705650643949,-156.71468372,0.00032876,2]
[312123545,1705650643958,-500.73894988,0.00032876,2]
[312123547,1705650643967,-500.0,0.00032876,2]
[312123548,1705650643977,-500.0,0.00032876,2]
[312123551,1705650643986,-728.53,0.00032876,2]
[312123553,1705650643996,-501.88135404,0.00032876,2]
[312123554,1705650644005,-197.43911502,0.00032876,2]
[312123556,1705650644015,-500.0,0.00032876,2]
[312123558,1705650644025,-2103.01,0.00032876,2]
[312123560,1705650644035,-504.5730539,0.00032876,2]
[312123561,1705650644045,-500.0,0.00032876,2]
[312123562,1705650644054,-495.39838283,0.00032876,2]
[312123563,1705650644064,-506.35665942,0.00032876,2]
[312123564,1705650644073,-500.0,0.00032876,2]
[312123565,1705650644083,-500.0,0.00032876,2]
[312123566,1705650644092,-500.0,0.00032876,2]
[312123567,1705650644102,-500.0,0.00032876,2]
[312123568,1705650644114,-506.78784956,0.00032876,2]
[312123569,1705650644127,-500.0,0.00032876,2]
[312123570,1705650644137,-500.0,0.00032876,2]
[312123571,1705650644148,-500.0,0.00032876,2]
[312123572,1705650644157,-500.0,0.00032876,2]
[312123573,1705650644171,-500.38761768,0.00032876,2]
[312123574,1705650644186,-405.15774271,0.00032876,2]
[312123575,1705650644203,-500.0,0.00032876,2]
[312123576,1705650644215,-500.0,0.00032876,2]
[312123578,1705650644225,-503.86239034,0.00032876,2]
[312123580,1705650644235,-500.0,0.00032876,2]
[312123581,1705650644245,-500.0,0.00032876,2]
[312123583,1705650644255,-500.0,0.00032876,2]
[312123585,1705650644266,-500.0,0.00032876,2]
[312123587,1705650644277,-482.11039133,0.00032876,2]
[312123589,1705650644290,-500.0,0.00032876,2]
[312123596,1705650644365,-503.96709031,0.00032876,2]
[312123598,1705650644377,-500.0,0.00032876,2]
[312123599,1705650644387,-500.0,0.00032876,2]
[312123601,1705650644396,-822.24,0.00032876,2]
[312123602,1705650644405,-507.80576865,0.00032876,2]
[312123603,1705650644414,-575.27,0.00032876,2]
[312123604,1705650644423,-575.27,0.00032876,2]
[312123605,1705650644432,-575.27,0.00032876,2]
[312123606,1705650644441,-575.27,0.00032876,2]
[312123607,1705650644450,-575.27,0.00032876,2]
[312123608,1705650644459,-575.27,0.00032876,2]
[312123609,1705650644469,-575.27,0.00032876,2]
[312123610,1705650644478,-575.27,0.00032876,2]
[312123611,1705650644487,-575.27,0.00032876,2]
[312123612,1705650644497,-575.27,0.00032876,2]
[312123613,1705650644506,-575.27,0.00032876,2]
[312123614,1705650644516,-575.27,0.00032876,2]
[312123615,1705650644525,-575.27,0.00032876,2]
[312123616,1705650644534,-575.27,0.00032876,2]
[312123617,1705650644543,-575.27,0.00032876,2]
[312123618,1705650644552,-500.0,0.00032876,2]
[312123619,1705650644561,-575.27,0.00032876,2]
[312123620,1705650644569,-575.27,0.00032876,2]
[312123621,1705650644578,-575.27,0.00032876,2]
[312123622,1705650644587,-575.27,0.00032876,2]
[312123623,1705650644596,-575.27,0.00032876,2]
[312123624,1705650644605,-575.27,0.00032876,2]
[312123625,1705650644616,-575.27,0.00032876,2]
[312123626,1705650644627,-575.27,0.00032876,2]
[312123627,1705650644636,-575.3,0.00032876,2]
[312123628,1705650644646,-500.0,0.00032876,2]
[312123629,1705650644655,-500.0,0.00032876,2]
[312123630,1705650644664,-500.0,0.00032876,2]
[312123631,1705650644673,-500.0,0.00032876,2]
[312123632,1705650644682,-500.0,0.00032876,2]
[312123633,1705650644692,-501.63775843,0.00032876,2]
[312123634,1705650644701,-500.0,0.00032876,2]
[312123635,1705650644711,-502.01974004,0.00032876,2]
[312123636,1705650644720,-500.32711661,0.00032876,2]
[312123637,1705650644730,-771.61,0.00032876,2]
[312123638,1705650644739,-601.69002037,0.00032876,2]
[312123639,1705650644748,-623.74828753,0.00032876,2]
[312123640,1705650644757,-500.0,0.00032876,2]
[312123641,1705650644767,-500.0,0.00032876,2]
[312123642,1705650644776,-500.0,0.00032876,2]
[312123643,1705650644786,-500.0,0.00032876,2]
[312123644,1705650644795,-518.15668923,0.00032876,2]
[312123645,1705650644804,-501.90285367,0.00032876,2]
[312123646,1705650644814,-500.0,0.00032876,2]
[312123647,1705650644823,-615.97,0.00032876,2]
[312123648,1705650644834,-500.0,0.00032876,2]
[312123649,1705650644843,-500.0,0.00032876,2]
[312123650,1705650644852,-506.29333055,0.00032876,2]
[312123651,1705650644861,-500.33320496,0.00032876,2]
[312123652,1705650644873,-206.29199228,0.00032876,2]
[312123653,1705650644882,-500.0,0.00032876,2]
[312123654,1705650644893,-500.0,0.00032876,2]
[312123655,1705650644901,-500.0,0.00032876,2]
[312123656,1705650644910,-500.0,0.00032876,2]
[312123657,1705650644919,-1300.5,0.00032876,2]
[312123658,1705650644928,-246.09219212,0.00032876,2]
[312123660,1705650644938,-500.19697676,0.00032876,2]
[312123662,1705650644946,-500.0,0.00032876,2]
[312123664,1705650644956,-500.0,0.00032876,2]
[312123665,1705650644965,-500.61638152,0.00032876,2]
[312123666,1705650644974,-500.0,0.00032876,2]
[312123668,1705650644983,-2449.16,0.00032876,2]
[312123670,1705650644992,-865.48,0.00032876,2]
[312123672,1705650645002,-500.0,0.00032876,2]
[312123673,1705650645011,-500.0,0.00032876,2]
[312123674,1705650645020,-500.0,0.00032876,2]
[312123675,1705650645029,-500.0,0.00032876,2]
[312123676,1705650645039,-500.0,0.00032876,2]
[312123677,1705650645048,-500.36498444,0.00032876,2]
[312123678,1705650645057,-423.73578706,0.00032876,2]
[312123679,1705650645066,-536.54378971,0.00032876,2]
[312123680,1705650645076,-364.79966267,0.00032876,2]
[312123681,1705650645085,-500.0,0.00032876,2]
[312123682,1705650645094,-579.13966273,0.00032876,2]
[312123684,1705650645103,-255.64911985,0.00032876,2]
[312123686,1705650645112,-500.0,0.00032876,2]
[312123688,1705650645124,-500.0,0.00032876,2]
[312123690,1705650645133,-506.50835302,0.00032876,2]
[312123692,1705650645142,-500.0,0.00032876,2]
[312123693,1705650645151,-500.0,0.00032876,2]
[312123696,1705650645160,-500.0,0.00032876,2]
[312123698,1705650645170,-505.9027438,0.00032876,2]
[312123700,1705650645181,-500.0,0.00032876,2]
[312123701,1705650645190,-1512.86,0.00032876,2]
[312123704,1705650645200,-500.0,0.00032876,2]
[312123705,1705650645209,-500.0,0.00032876,2]
[312123707,1705650645219,-500.0,0.00032876,2]
[312123709,1705650645228,-500.0,0.00032876,2]
[312123712,1705650645237,-500.0,0.00032876,2]
[312123715,1705650645246,-500.0,0.00032876,2]
[312123718,1705650645255,-500.0,0.00032876,2]
[312123721,1705650645265,-500.0,0.00032876,2]
[312123724,1705650645274,-500.0,0.00032876,2]
[312123727,1705650645284,-500.0,0.00032876,2]
[312123729,1705650645293,-500.0,0.00032876,2]
[312123731,1705650645302,-500.0,0.00032876,2]
[312123733,1705650645311,-500.0,0.00032876,2]
[312123735,1705650645321,-500.0,0.00032876,2]
[312123737,1705650645330,-500.0,0.00032876,2]
[312123739,1705650645341,-500.0,0.00032876,2]
[312123741,1705650645351,-500.0,0.00032876,2]
[312123743,1705650645360,-500.0,0.00032876,2]
[312123745,1705650645371,-500.0,0.00032876,2]
[312123747,1705650645380,-500.0,0.00032876,2]
[312123749,1705650645389,-500.0,0.00032876,2]
[312123751,1705650645398,-500.0,0.00032876,2]
[312123753,1705650645408,-500.0,0.00032876,2]
[312123755,1705650645417,-500.0,0.00032876,2]
[312123756,1705650645427,-500.0,0.00032876,2]
[312123758,1705650645436,-500.0,0.00032876,2]
[312123760,1705650645446,-500.0,0.00032876,2]
[312123762,1705650645456,-500.0,0.00032876,2]
[312123764,1705650645466,-500.0,0.00032876,2]
[312123766,1705650645476,-500.0,0.00032876,2]
[312123768,1705650645486,-500.0,0.00032876,2]
[312123770,1705650645495,-578.9,0.00032876,2]
[312123772,1705650645506,-500.67574723,0.00032876,2]
[312123774,1705650645515,-1216.98,0.00032876,2]
[312123776,1705650645525,-13873.2,0.00032876,2]
[312123778,1705650645535,-787.98,0.00032876,2]
[312123780,1705650645545,-500.0,0.00032876,2]
[312123782,1705650645554,-500.0,0.00032876,2]
[312123784,1705650645563,-500.0,0.00032876,2]
[312123786,1705650645572,-500.0,0.00032876,2]
[312123788,1705650645582,-500.0,0.00032876,2]
[312123790,1705650645591,-9408.86,0.00032876,2]
[312123792,1705650645600,-531.37845023,0.00032876,2]
[312123794,1705650645609,-500.0,0.00032876,2]
[312123796,1705650645621,-500.0,0.00032876,2]
[312123798,1705650645630,-500.0,0.00032876,2]
[312123806,1705650645695,-500.0,0.00032876,2]
[312123808,1705650645705,-500.99613015,0.00032876,2]
[312123810,1705650645714,-500.0,0.00032876,2]
[312123812,1705650645723,-500.0,0.00032876,2]
[312123814,1705650645733,-500.0,0.00032876,2]
[312123816,1705650645742,-504.89253781,0.00032876,2]
[312123818,1705650645751,-500.0,0.00032876,2]
[312123820,1705650645760,-500.0,0.00032876,2]
[312123822,1705650645768,-500.0,0.00032876,2]
[312123825,1705650645778,-1000.0,0.00032876,2]
[312123828,1705650645787,-1398.71,0.00032876,2]
[312123831,1705650645796,-500.38185685,0.00032876,2]
[312123834,1705650645804,-500.64880738,0.00032876,2]
[312123836,1705650645813,-500.0,0.00032876,2]
[312123839,1705650645822,-500.0,0.00032876,2]
[312123841,1705650645832,-500.0,0.00032876,2]
[312123843,1705650645842,-287.43882541,0.00032876,2]
[312123845,1705650645851,-510.43954278,0.00032876,2]
[312123847,1705650645860,-504.17788797,0.00032876,2]
[312123849,1705650645871,-500.0,0.00032876,2]
[312123851,1705650645880,-500.0,0.00032876,2]
[312123853,1705650645890,-500.0,0.00032876,2]
[312123855,1705650645898,-500.0,0.00032876,2]
[312123857,1705650645907,-500.0,0.00032876,2]
[312123858,1705650645916,-863.0,0.00032876,2]
[312123861,1705650645925,-503.80379384,0.00032876,2]
[312123863,1705650645935,-500.0,0.00032876,2]
[312123864,1705650645944,-500.0,0.00032876,2]
[312123866,1705650645952,-500.0,0.00032876,2]
[312123868,1705650645961,-500.0,0.00032876,2]
[312123870,1705650645971,-4765.28,0.00032876,2]
[312123873,1705650645982,-500.0,0.00032876,2]
[312123874,1705650645991,-500.0,0.00032876,2]
[312123876,1705650646001,-452.47030798,0.00032876,2]
[312123878,1705650646010,-500.0,0.00032876,2]
[312123880,1705650646020,-512.34032242,0.00032876,2]
[312123882,1705650646029,-506.5554029,0.00032876,2]
[312123884,1705650646039,-500.0,0.00032876,2]
[312123886,1705650646049,-521.07,0.00032876,2]
[312123888,1705650646058,-502.97710303,0.00032876,2]
[312123890,1705650646067,-500.0,0.00032876,2]
[312123892,1705650646076,-500.0,0.00032876,2]
[312123894,1705650646085,-500.0,0.00032876,2]
[312123896,1705650646094,-539.02,0.00032876,2]
[312123898,1705650646103,-500.0,0.00032876,2]
[312123900,1705650646112,-500.0,0.00032876,2]
[312123902,1705650646125,-500.0,0.00032876,2]
[312123904,1705650646134,-500.0,0.00032876,2]
[312123907,1705650646143,-2952.52,0.00032876,2]
[312123910,1705650646152,-500.0,0.00032876,2]
[312123913,1705650646161,-500.0,0.00032876,2]
[312123916,1705650646172,-500.0,0.00032876,2]
[312123918,1705650646181,-500.0,0.00032876,14]
[312123921,1705650646190,-522.0,0.00032876,2]
[312123924,1705650646198,-500.0,0.00032876,2]
[312123927,1705650646208,-500.0,0.00032876,2]
[312123930,1705650646216,-500.0,0.00032876,2]
[312123933,1705650646225,-200.0236592,0.00032876,2]
[312123936,1705650646234,-469.635359,0.00032876,2]
[312123939,1705650646243,-500.0,0.00032876,2]
[312123942,1705650646253,-500.0,0.00032876,2]
[312123945,1705650646263,-500.0,0.00032876,2]
[312123948,1705650646273,-500.0,0.00032876,2]
[312123952,1705650646282,-500.0,0.00032876,2]
[312123956,1705650646291,-500.0,0.00032876,2]
[312123960,1705650646301,-282.63371016,0.00032876,2]
[312123964,1705650646311,-654.24,0.00032876,2]
[312123968,1705650646320,-500.0,0.00032876,2]
[312123972,1705650646329,-508.59956434,0.00032876,2]
[312123976,1705650646339,-500.0,0.00032876,2]
[312123979,1705650646349,-500.0,0.00032876,2]
[312123980,1705650646358,-500.0,0.00032876,2]
[312123982,1705650646367,-500.0,0.00032876,2]
[312123984,1705650646378,-581.84,0.00032876,2]
[312123986,1705650646387,-500.0,0.00032876,2]
[312123988,1705650646397,-500.0,0.00032876,2]
[312123990,1705650646405,-502.20901624,0.00032876,2]
[312123992,1705650646415,-500.0,0.00032876,2]
[312123995,1705650646424,-500.0,0.00032876,2]
[312123998,1705650646433,-500.0,0.00032876,2]
[312124000,1705650646442,-500.0,0.00032876,2]
[312124002,1705650646451,-500.0,0.00032876,2]
[312124004,1705650646460,-514.24045562,0.00032876,2]
[312124006,1705650646469,-500.0,0.00032876,2]
[312124008,1705650646479,-500.0,0.00032876,2]
[312124010,1705650646488,-500.58497799,0.00032876,2]
[312124012,1705650646497,-500.0,0.00032876,2]
[312124014,1705650646506,-500.0,0.00032876,2]
[312124016,1705650646516,-500.0,0.00032876,2]
[312124018,1705650646525,-3111.0,0.00032876,2]
[312124020,1705650646535,-500.0,0.00032876,2]
[312124022,1705650646544,-642.04263238,0.00032876,2]
[312124024,1705650646554,-500.0,0.00032876,2]